fUST/lending_fUST_20240528
["ID","MTS","AMOUNT","RATE_DAILY","PERIOD"]
[328086790,1716843047494,-640.01,0.00027397,4]
[328086792,1716843047503,-500.0,0.00027397,4]
[328086793,1716843047512,-550.61141441,0.00027397,4]
[328086795,1716843047521,-500.0,0.00027397,4]
[328086797,1716843047530,-867.15,0.00027397,4]
[328086799,1716843047540,-500.0,0.00027397,4]
[328086801,1716843047549,-502.8166518,0.00027397,4]
[328086803,1716843047558,-500.0,0.00027397,4]
[328086805,1716843047567,-500.0,0.00027397,4]
[328086807,1716843047577,-363.09747813,0.00027397,4]
[328086810,1716843047586,-500.0,0.00027397,4]
[328086811,1716843047596,-151.0,0.00027397,2]
[328086813,1716843047605,-500.0,0.00027397,4]
[328086815,1716843047614,-500.0,0.00027397,4]
[328086817,1716843047624,-1401.49,0.00027397,4]
[328086820,1716843047633,-500.0,0.00027397,4]
[328086822,1716843047643,-211.40673621,0.00027397,4]
[328086824,1716843047652,-500.0,0.00027397,4]
[328086826,1716843047661,-500.0,0.00027397,4]
[328086827,1716843047671,-508.36178674,0.00027397,4]
[328086830,1716843047680,-500.0,0.00027397,4]
[328086831,1716843047690,-500.0,0.00027397,4]
[328086833,1716843047699,-500.0,0.00027397,4]
[328086835,1716843047708,-524.62580058,0.00027397,4]
[328086837,1716843047717,-511.52061807,0.00027397,4]
[328086839,1716843047727,-500.0,0.00027397,4]
[328086841,1716843047736,-500.0,0.00027397,4]
[328086843,1716843047745,-500.0,0.00027397,4]
[328086846,1716843047755,-500.0,0.00027397,4]
[328086848,1716843047765,-500.0,0.00027397,4]
[328086850,1716843047774,-1080.72,0.00027397,4]
[328086851,1716843047784,-500.0,0.00027397,4]
[328086854,1716843047793,-161.16463461,0.00027397,4]
[328086856,1716843047802,-500.0,0.00027397,4]
[328086857,1716843047812,-500.0,0.00027397,4]
[328086860,1716843047821,-1004.06133988,0.00027397,4]
[328086861,1716843047831,-1582.44,0.00027397,4]
[328086864,1716843047840,-167.86513186,0.00027397,4]
[328086866,1716843047849,-500.0,0.00027397,4]
[328086868,1716843047859,-500.0,0.00027397,4]
[328086869,1716843047868,-541.73,0.00027397,4]
[328086871,1716843047877,-500.0,0.00027397,4]
[328086874,1716843047887,-500.0,0.00027397,4]
[328086876,1716843047896,-500.0,0.00027397,4]
[328086878,1716843047905,-500.0,0.00027397,4]
[328086879,1716843047914,-500.0,0.00027397,4]
[328086881,1716843047924,-510.98056289,0.00027397,4]
[328086883,1716843047933,-500.0,0.00027397,4]
[328086885,1716843047943,-500.0,0.00027397,4]
[328086888,1716843047953,-462.25,0.00027397,4]
[328086890,1716843047962,-500.0,0.00027397,4]
[328086892,1716843047972,-284.190606,0.00027397,2]
[328086894,1716843047981,-284.190606,0.00027397,2]
[328086896,1716843047990,-500.0,0.00027397,4]
[328086898,1716843047999,-500.0,0.00027397,4]
[328086900,1716843048008,-284.190606,0.00027397,2]
[328086902,1716843048018,-500.0,0.00027397,4]
[328086904,1716843048027,-504.10716383,0.00027397,4]
[328086906,1716843048036,-500.0,0.00027397,4]
[328086908,1716843048045,-500.0,0.00027397,4]
[328086910,1716843048054,-284.190606,0.00027397,2]
[328086912,1716843048063,-284.190606,0.00027397,2]
[328086914,1716843048072,-284.190606,0.00027397,2]
[328086916,1716843048082,-500.0,0.00027397,4]
[328086918,1716843048091,-500.0,0.00027397,4]
[328086920,1716843048100,-500.0,0.00027397,4]
[328086922,1716843048108,-500.0,0.00027397,4]
[328086924,1716843048118,-500.0,0.00027397,4]
[328086926,1716843048126,-500.0,0.00027397,4]
[328086928,1716843048136,-472.37,0.00027397,4]
[328086930,1716843048145,-500.0,0.00027397,4]
[328086932,1716843048154,-151.0,0.00027397,2]
[328086934,1716843048163,-223.867962,0.00027397,2]
[328086936,1716843048172,-500.0,0.00027397,4]
[328086938,1716843048181,-500.0,0.00027397,4]
[328086940,1716843048190,-151.0,0.00027397,2]
[328086942,1716843048199,-500.0,0.00027397,4]
[328086944,1716843048208,-250.26303721,0.00027397,4]
[328086946,1716843048218,-500.0,0.00027397,4]
[328086948,1716843048227,-501.28700635,0.00027397,4]
[328086950,1716843048236,-1273.81,0.00027397,4]
[328086952,1716843048246,-500.0,0.00027397,4]
[328086954,1716843048256,-500.0,0.00027397,4]
[328086956,1716843048265,-500.0,0.00027397,4]
[328086958,1716843048275,-500.0,0.00027397,4]
[328086960,1716843048284,-500.0,0.00027397,4]
[328086962,1716843048293,-500.0,0.00027397,4]
[328086964,1716843048302,-156.33103979,0.00027397,4]
[328086966,1716843048316,-6360.36,0.00027397,4]
[328086968,1716843048326,-500.0,0.00027397,4]
[328086970,1716843048335,-500.0,0.00027397,4]
[328086972,1716843048344,-500.0,0.00027397,4]
[328086974,1716843048354,-500.0,0.00027397,4]
[328086976,1716843048364,-503.30282631,0.00027397,4]
[328086978,1716843048373,-500.0,0.00027397,4]
[328086980,1716843048383,-580.2,0.00027397,4]
[328086982,1716843048395,-500.0,0.00027397,4]
[328086984,1716843048405,-500.0,0.00027397,4]
[328086986,1716843048414,-330.54885932,0.00027397,4]
[328086988,1716843048425,-500.0,0.00027397,2]
[328086990,1716843048435,-502.0591976,0.00027397,4]
[328086992,1716843048444,-289.19402204,0.00027397,2]
[328086994,1716843048454,-1980.36,0.00027397,4]
[328086996,1716843048463,-6744.91,0.00027397,4]
[328086998,1716843048473,-500.0,0.00027397,4]
[328087000,1716843048483,-513.6,0.00027397,4]
[328087002,1716843048492,-517.33994565,0.00027397,4]
[328087004,1716843048502,-500.0,0.00027397,4]
[328087006,1716843048512,-500.0,0.00027397,4]
[328087008,1716843048522,-500.0,0.00027397,4]
[328087010,1716843048531,-500.0,0.00027397,4]
[328087012,1716843048541,-155.66920967,0.00027397,4]
[328087014,1716843048550,-500.0,0.00027397,4]
[328087016,1716843048559,-743.62,0.00027397,4]
[328087018,1716843048568,-3425.82,0.00027397,4]
[328087020,1716843048578,-500.0,0.00027397,4]
[328087022,1716843048587,-500.0,0.00027397,4]
[328087024,1716843048597,-500.0,0.00027397,4]
[328087026,1716843048606,-500.0,0.00027397,4]
[328087028,1716843048616,-500.0,0.00027397,4]
[328087030,1716843048626,-500.0,0.00027397,4]
[328087032,1716843048636,-1650.56,0.00027397,4]
[328087034,1716843048646,-2514.16,0.00027397,4]
[328087036,1716843048656,-500.0,0.00027397,4]
[328087038,1716843048666,-500.0,0.00027397,4]
[328087040,1716843048675,-250.68670588,0.00027397,4]
[328087042,1716843048686,-500.0,0.00027397,4]
[328087044,1716843048695,-183.0953654,0.00027397,4]
[328087046,1716843048705,-500.0,0.00027397,4]
[328087048,1716843048714,-500.0,0.00027397,4]
[328087050,1716843048724,-188.31566816,0.00027397,4]
[328087052,1716843048734,-500.0,0.00027397,4]
[328087054,1716843048744,-500.0,0.00027397,4]
[328087056,1716843048754,-500.0,0.00027397,4]
[328087058,1716843048765,-500.0,0.00027397,4]
[328087060,1716843048775,-500.0,0.00027397,4]
[328087062,1716843048784,-500.0,0.00027397,4]
[328087064,1716843048794,-525.25254483,0.00027397,4]
[328087066,1716843048804,-500.0,0.00027397,4]
[328087068,1716843048814,-512.62366077,0.00027397,4]
[328087070,1716843048824,-500.00000001,0.00027397,4]
[328087072,1716843048834,-503.39891254,0.00027397,4]
[328087074,1716843048843,-500.0,0.00027397,4]
[328087076,1716843048852,-1236.41,0.00027397,4]
[328087078,1716843048862,-532.74,0.00027397,4]
[328087080,1716843048871,-300.0,0.00027397,4]
[328087082,1716843048880,-500.0,0.00027397,4]
[328087084,1716843048889,-500.0,0.00027397,4]
[328087086,1716843048899,-500.0,0.00027397,4]
[328087088,1716843048908,-500.0,0.00027397,4]
[328087090,1716843048918,-151.0,0.00027397,2]
[328087092,1716843048927,-405.56083101,0.00027397,4]
[328087094,1716843048936,-151.0,0.00027397,2]
[328087096,1716843048946,-500.0,0.00027397,4]
[328087098,1716843048956,-593.53275419,0.00027397,4]
[328087115,1716843049110,-1037.3,0.00027397,4]
[328087117,1716843049120,-174.91184753,0.00027397,4]
[328087119,1716843049131,-500.0,0.00027397,4]
[328087121,1716843049140,-247.795296,0.00027397,2]
[328087123,1716843049150,-500.0,0.00027397,4]
[328087125,1716843049159,-500.0,0.00027397,4]
[328087127,1716843049169,-500.0,0.00027397,4]
[328087129,1716843049178,-500.0,0.00027397,4]
[328087131,1716843049188,-151.0,0.00027397,2]
[328087133,1716843049197,-278.696478,0.00027397,2]
[328087135,1716843049207,-1413.3,0.00027397,4]
[328087137,1716843049216,-490.34820793,0.00027397,4]
[328087139,1716843049225,-500.0,0.00027397,4]
[328087141,1716843049235,-500.0,0.00027397,4]
[328087143,1716843049244,-500.0,0.00027397,4]
[328087145,1716843049254,-2007.25,0.00027397,4]
[328087148,1716843049264,-500.0,0.00027397,4]
[328087150,1716843049274,-706.56,0.00027397,4]
[328087151,1716843049283,-500.0,0.00027397,4]
[328087153,1716843049292,-500.0,0.00027397,4]
[328087155,1716843049302,-500.0,0.00027397,4]
[328087157,1716843049316,-500.0,0.00027397,4]
[328087159,1716843049325,-500.0,0.00027397,4]
[328087162,1716843049335,-509.73400723,0.00027397,4]
[328087163,1716843049345,-500.0,0.00027397,4]
[328087166,1716843049355,-500.0,0.00027397,4]
[328087167,1716843049365,-500.0,0.00027397,4]
[328087170,1716843049375,-500.0,0.00027397,4]
[328087172,1716843049384,-500.0,0.00027397,4]
[328087174,1716843049397,-500.0,0.00027397,4]
[328087175,1716843049407,-502.21224087,0.00027397,4]
[328087177,1716843049417,-500.0,0.00027397,4]
[328087179,1716843049425,-500.0,0.00027397,4]
[328087181,1716843049434,-500.0,0.00027397,4]
[328087183,1716843049443,-582.85,0.00027397,4]
[328087185,1716843049453,-500.0,0.00027397,4]
[328087187,1716843049462,-500.0,0.00027397,4]
[328087189,1716843049472,-758.91,0.00027397,4]
[328087191,1716843049481,-639.22,0.00027397,4]
[328087193,1716843049490,-500.0,0.00027397,4]
[328087195,1716843049499,-500.0,0.00027397,4]
[328087197,1716843049509,-500.0,0.00027397,4]
[328087199,1716843049518,-500.0,0.00027397,4]
[328087201,1716843049527,-500.0,0.00027397,4]
[328087203,1716843049536,-8443.48,0.00027397,4]
[328087205,1716843049545,-500.0,0.00027397,4]
[328087207,1716843049554,-500.0,0.00027397,4]
[328087209,1716843049563,-500.0,0.00027397,4]
[328087211,1716843049573,-500.0,0.00027397,4]
[328087213,1716843049583,-500.0,0.00027397,4]
[328087215,1716843049592,-570.18,0.00027397,4]
[328087217,1716843049602,-500.0,0.00027397,4]
[328087219,1716843049612,-834.84,0.00027397,4]
[328087221,1716843049621,-507.40597008,0.00027397,4]
[328087223,1716843049631,-500.0,0.00027397,4]
[328087225,1716843049640,-500.0,0.00027397,4]
[328087227,1716843049649,-500.0,0.00027397,4]
[328087229,1716843049659,-500.0,0.00027397,4]
[328087231,1716843049668,-500.0,0.00027397,4]
[328087233,1716843049678,-500.0,0.00027397,4]
[328087235,1716843049688,-500.0,0.00027397,4]
[328087237,1716843049698,-502.10590202,0.00027397,4]
[328087239,1716843049707,-500.0,0.00027397,4]
[328087241,1716843049717,-191.86067184,0.00027397,4]
[328087243,1716843049726,-500.0,0.00027397,4]
[328087245,1716843049736,-500.0,0.00027397,4]
[328087247,1716843049745,-500.0,0.00027397,4]
[328087249,1716843049755,-636.57,0.00027397,4]
[328087251,1716843049766,-500.0,0.00027397,4]
[328087253,1716843049775,-500.0,0.00027397,4]
[328087255,1716843049784,-500.0,0.00027397,4]
[328087257,1716843049794,-689.64,0.00027397,4]
[328087259,1716843049803,-254.10677196,0.00027397,4]
[328087261,1716843049813,-500.0,0.00027397,4]
[328087263,1716843049822,-500.0,0.00027397,4]
[328087265,1716843049831,-712.19,0.00027397,4]
[328087267,1716843049841,-500.0,0.00027397,4]
[328087269,1716843049850,-500.0,0.00027397,4]
[328087271,1716843049860,-151.0,0.00027397,4]
[328087273,1716843049869,-500.0,0.00027397,4]
[328087275,1716843049878,-500.0,0.00027397,4]
[328087277,1716843049887,-500.0,0.00027397,4]
[328087279,1716843049897,-3396.27,0.00027397,4]
[328087281,1716843049906,-500.0,0.00027397,4]
[328087283,1716843049915,-500.0,0.00027397,4]
[328087285,1716843049925,-500.0,0.00027397,4]
[328087287,1716843049934,-500.0,0.00027397,4]
[328087288,1716843049944,-500.0,0.00027397,4]
[328087290,1716843049953,-500.0,0.00027397,4]
[328087292,1716843049963,-508.96063246,0.00027397,4]
[328087294,1716843049972,-500.0,0.00027397,4]
[328087296,1716843049982,-500.0,0.00027397,4]
[328087298,1716843049991,-570.71,0.00027397,4]
[328087300,1716843050000,-500.0,0.00027397,4]
[328087302,1716843050011,-2224.6,0.00027397,4]
[328087304,1716843050020,-973.27,0.00027397,4]
[328087306,1716843050030,-151.0,0.00027397,2]
[328087308,1716843050039,-501.0954675,0.00027397,4]
[328087310,1716843050050,-151.0,0.00027397,2]
[328087312,1716843050059,-500.0,0.00027397,4]
[328087314,1716843050068,-500.0,0.00027397,4]
[328087316,1716843050078,-1189.25,0.00027397,2]
[328087318,1716843050088,-151.0,0.00027397,2]
[328087320,1716843050097,-151.0,0.00027397,2]
[328087322,1716843050106,-500.0,0.00027397,4]
[328087324,1716843050116,-500.0,0.00027397,4]
[328087326,1716843050125,-503.67848591,0.00027397,4]
[328087328,1716843050134,-500.0,0.00027397,4]
[328087330,1716843050144,-500.0,0.00027397,4]
[328087332,1716843050153,-500.0,0.00027397,4]
[328087334,1716843050162,-500.0,0.00027397,4]
[328087336,1716843050172,-333.49233729,0.00027397,4]
[328087338,1716843050181,-500.0,0.00027397,4]
[328087340,1716843050191,-508.85193016,0.00027397,4]
[328087342,1716843050200,-791.94,0.00027397,4]
[328087344,1716843050210,-529.95756329,0.00027397,4]
[328087346,1716843050219,-500.0,0.00027397,4]
[328087348,1716843050228,-500.0,0.00027397,4]
[328087350,1716843050237,-500.0,0.00027397,4]
[328087352,1716843050247,-503.40153444,0.00027397,4]
[328087354,1716843050256,-500.0,0.00027397,4]
[328087356,1716843050266,-500.0,0.00027397,4]
[328087358,1716843050275,-1320.29,0.00027397,4]
[328087360,1716843050285,-924.49,0.00027397,4]
[328087362,1716843050295,-503.38956751,0.00027397,4]
[328087364,1716843050305,-505.61425532,0.00027397,4]
[328087366,1716843050320,-500.0,0.00027397,4]
[328087368,1716843050329,-500.0,0.00027397,4]
[328087370,1716843050338,-151.0,0.00027397,2]
[328087372,1716843050348,-928.898094,0.00027397,2]
[328087374,1716843050358,-928.898094,0.00027397,2]
[328087376,1716843050367,-500.0,0.00027397,4]
[328087378,1716843050376,-500.0,0.00027397,4]
[328087380,1716843050391,-500.0,0.00027397,4]
[328087382,1716843050401,-1551.94,0.00027397,4]
[328087384,1716843050411,-928.898094,0.00027397,2]
[328087386,1716843050420,-928.898094,0.00027397,2]
[328087388,1716843050430,-230.47892881,0.00027397,4]
[328087390,1716843050439,-3777.76,0.00027397,4]
[328087392,1716843050448,-500.0,0.00027397,4]
[328087394,1716843050458,-151.0,0.00027397,2]
[328087396,1716843050467,-500.0,0.00027397,4]
[328087398,1716843050476,-500.0,0.00027397,4]
[328087400,1716843050486,-504.32923428,0.00027397,4]
[328087402,1716843050495,-500.0,0.00027397,4]
[328087404,1716843050505,-500.0,0.00027397,4]
[328087406,1716843050515,-500.0,0.00027397,4]
[328087408,1716843050525,-1681.8,0.00027397,4]
[328087410,1716843050535,-878.5,0.00027397,4]
[328087412,1716843050544,-500.0,0.00027397,4]
[328087414,1716843050553,-2991.36,0.00027397,4]
[328087416,1716843050563,-513.30892311,0.00027397,4]
[328087418,1716843050572,-500.0,0.00027397,4]
[328087420,1716843050582,-151.0,0.00027397,2]
[328087422,1716843050591,-151.0,0.00027397,2]
[328087424,1716843050600,-500.0,0.00027397,4]
[328087426,1716843050609,-500.0,0.00027397,4]
[328087428,1716843050618,-500.0,0.00027397,4]
[328087430,1716843050628,-500.0,0.00027397,4]
[328087432,1716843050637,-500.0,0.00027397,4]
[328087434,1716843050647,-500.0,0.00027397,4]
[328087436,1716843050656,-648.84,0.00027397,4]
[328087438,1716843050665,-11747.98,0.00027397,4]
[328087440,1716843050675,-500.0,0.00027397,4]
[328087442,1716843050684,-1121.64,0.00027397,4]
[328087444,1716843050694,-500.0,0.00027397,4]
[328087446,1716843050703,-500.0,0.00027397,4]
[328087448,1716843050713,-152.86838235,0.00027397,4]
[328087450,1716843050722,-500.0,0.00027397,4]
[328087452,1716843050732,-190.669061,0.00027397,2]
[328087454,1716843050741,-190.669061,0.00027397,2]
[328087456,1716843050751,-632.85899877,0.00027397,4]
[328087458,1716843050761,-151.0,0.00027397,2]
[328087460,1716843050770,-190.669061,0.00027397,2]
[328087462,1716843050780,-500.0,0.00027397,4]
[328087464,1716843050790,-500.0,0.00027397,4]
[328087466,1716843050800,-500.0,0.00027397,4]
[328087468,1716843050810,-300.810918,0.00027397,2]
[328087470,1716843050819,-190.669061,0.00027397,2]
[328087472,1716843050829,-500.0,0.00027397,4]
[328087474,1716843050839,-500.0,0.00027397,4]
[328087476,1716843050849,-500.0,0.00027397,4]
[328087478,1716843050858,-500.0,0.00027397,4]
[328087480,1716843050867,-500.0,0.00027397,4]
[328087482,1716843050877,-500.0,0.00027397,4]
[328087484,1716843050887,-500.0,0.00027397,4]
[328087486,1716843050896,-500.0,0.00027397,4]
[328087488,1716843050905,-503.34319978,0.00027397,4]
[328087490,1716843050915,-500.0,0.00027397,4]
[328087492,1716843050924,-500.0,0.00027397,4]
[328087494,1716843050933,-500.0,0.00027397,4]
[328087496,1716843050942,-500.0,0.00027397,4]
[328087498,1716843050952,-500.0,0.00027397,4]
[328087500,1716843050962,-500.0,0.00027397,4]
[328087502,1716843050971,-500.0,0.00027397,4]
[328087504,1716843050980,-500.0,0.00027397,4]
[328087506,1716843050989,-500.0,0.00027397,4]
[328087508,1716843050999,-500.0,0.00027397,4]
[328087510,1716843051008,-500.0,0.00027397,4]
[328087512,1716843051017,-500.0,0.00027397,4]
[328087514,1716843051026,-623.43764054,0.00027397,4]
[328087515,1716843051037,-507.26199785,0.00027397,4]
[328087517,1716843051048,-554.26,0.00027397,4]
[328087519,1716843051057,-10916.46,0.00027397,4]
[328087521,1716843051067,-500.0,0.00027397,4]
[328087523,1716843051076,-500.0,0.00027397,4]
[328087525,1716843051086,-795.94,0.00027397,4]
[328087527,1716843051095,-500.0,0.00027397,2]
[328087529,1716843051104,-157.5951227,0.00027397,2]
[328087532,1716843051114,-500.0,0.00027397,2]
[328087533,1716843051124,-500.0,0.00027397,2]
[328087535,1716843051133,-500.0,0.00027397,2]
[328087537,1716843051143,-500.0,0.00027397,2]
[328087539,1716843051153,-670.9,0.00027397,4]
[328087541,1716843051163,-500.0,0.00027397,4]
[328087543,1716843051172,-500.0,0.00027397,4]
[328087545,1716843051182,-500.0,0.00027397,4]
[328087547,1716843051192,-187.85367584,0.00027397,4]
[328087549,1716843051201,-500.0,0.00027397,4]
[328087551,1716843051211,-615.59,0.00027397,4]
[328087552,1716843051220,-1466.54,0.00027397,4]
[328087553,1716843051230,-500.0,0.00027397,4]
[328087554,1716843051239,-152.130202,0.00027397,2]
[328087555,1716843051248,-532.01,0.00027397,4]
[328087556,1716843051258,-500.0,0.00027397,4]
[328087557,1716843051267,-724.46,0.00027397,4]
[328087558,1716843051276,-500.0,0.00027397,4]
[328087559,1716843051286,-151.0,0.00027397,2]
[328087560,1716843051295,-151.0,0.00027397,2]
[328087561,1716843051304,-151.0,0.00027397,2]
[328087562,1716843051319,-151.0,0.00027397,2]
[328087563,1716843051328,-849.50397076,0.00027428,2]
[328087564,1716843051338,-1026.0,0.000275,5]
[328087565,1716843051347,-398.48813171,0.00027532,2]
[328087566,1716843051359,-500.0,0.00027671,4]
[328087567,1716843051369,-502.38726771,0.00027671,4]
[328087568,1716843051378,-624.96583772,0.00027671,4]
[328087570,1716843051389,-500.0,0.00027671,4]
[328087576,1716843051436,-500.0,0.00027671,4]
[328087578,1716843051445,-500.0,0.00027671,4]
[328087580,1716843051455,-500.0,0.00027671,4]
[328087582,1716843051464,-500.0,0.00027671,4]
[328087584,1716843051473,-500.0,0.00027671,4]
[328087586,1716843051483,-500.0,0.00027671,4]
[328087588,1716843051492,-500.0,0.00027671,4]
[328087590,1716843051502,-500.0,0.00027671,4]
[328087592,1716843051512,-500.0,0.00027671,4]
[328087594,1716843051521,-500.0,0.00027671,4]
[328087596,1716843051530,-151.0,0.00027671,2]
[328087598,1716843051538,-620.66,0.00027671,4]
[328087600,1716843051547,-500.0,0.00027671,4]
[328087602,1716843051557,-631.58,0.00027671,4]
[328087604,1716843051565,-500.0,0.00027671,4]
[328087606,1716843051574,-151.0,0.00027671,2]
[328087608,1716843051583,-151.0,0.00027671,2]
[328087610,1716843051592,-500.0,0.00027671,4]
[328087612,1716843051602,-151.0,0.00027671,2]
[328087614,1716843051611,-500.0,0.00027671,4]
[328087616,1716843051620,-500.0,0.00027671,4]
[328087618,1716843051629,-151.0,0.00027671,2]
[328087620,1716843051638,-500.0,0.00027671,4]
[328087622,1716843051647,-500.0,0.00027671,4]
[328087624,1716843051656,-500.0,0.00027671,4]
[328087626,1716843051666,-500.0,0.00027671,4]
[328087628,1716843051674,-500.0,0.00027671,4]
[328087630,1716843051683,-525.95,0.00027671,4]
[328087632,1716843051692,-500.0,0.00027671,4]
[328087634,1716843051701,-417.48592577,0.00027671,4]
[328087636,1716843051710,-500.0,0.00027671,4]
[328087638,1716843051719,-506.8605399,0.00027671,4]
[328087639,1716843051728,-500.0,0.00027671,4]
[328087641,1716843051738,-344.08337678,0.00027671,4]
[328087643,1716843051747,-918.87,0.00027671,4]
[328087645,1716843051757,-255.86484926,0.00027671,4]
[328087647,1716843051766,-500.0,0.00027671,4]
[328087649,1716843051775,-500.0,0.00027671,4]
[328087652,1716843051784,-500.0,0.00027671,4]
[328087654,1716843051794,-500.0,0.00027671,4]
[328087655,1716843051803,-500.0,0.00027671,4]
[328087657,1716843051812,-500.0,0.00027671,4]
[328087659,1716843051822,-579.64,0.00027671,4]
[328087661,1716843051831,-524.92,0.00027671,4]
[328087663,1716843051840,-500.0,0.00027671,4]
[328087665,1716843051849,-500.0,0.00027671,4]
[328087667,1716843051859,-500.0,0.00027671,4]
[328087669,1716843051868,-500.0,0.00027671,4]
[328087672,1716843051877,-520.665785,0.00027671,2]
[328087673,1716843051886,-500.0,0.00027671,4]
[328087675,1716843051896,-500.0,0.00027671,4]
[328087677,1716843051905,-520.665785,0.00027671,2]
[328087679,1716843051914,-500.0,0.00027671,4]
[328087682,1716843051933,-500.0,0.00027671,4]
[328087684,1716843051944,-500.0,0.00027671,4]
[328087687,1716843051954,-500.0,0.00027671,4]
[328087689,1716843051964,-558.71,0.00027671,4]
[328087690,1716843051973,-500.0,0.00027671,4]
[328087692,1716843051983,-500.0,0.00027671,4]
[328087695,1716843051993,-500.0,0.00027671,4]
[328087697,1716843052002,-1034.59,0.00027671,4]
[328087698,1716843052012,-1141.61,0.00027671,4]
[328087700,1716843052022,-540.44,0.00027671,2]
[328087702,1716843052031,-551.4,0.00027671,4]
[328087704,1716843052040,-500.0,0.00027671,4]
[328087706,1716843052050,-500.0,0.00027671,4]
[328087708,1716843052061,-500.0,0.00027671,4]
[328087710,1716843052070,-500.0,0.00027671,4]
[328087713,1716843052080,-593.51,0.00027671,4]
[328087714,1716843052089,-500.0,0.00027671,4]
[328087716,1716843052098,-154.87,0.00027671,4]
[328087718,1716843052108,-1608.47,0.00027671,4]
[328087721,1716843052117,-845.73,0.00027671,4]
[328087723,1716843052127,-500.0,0.00027671,4]
[328087725,1716843052136,-500.0,0.00027671,4]
[328087726,1716843052145,-500.0,0.00027671,4]
[328087728,1716843052154,-500.0,0.00027671,4]
[328087730,1716843052164,-151.0,0.00027671,2]
[328087733,1716843052173,-151.0,0.00027671,2]
[328087735,1716843052182,-500.0,0.00027671,4]
[328087737,1716843052192,-551.55,0.00027671,4]
[328087739,1716843052201,-500.0,0.00027671,4]
[328087741,1716843052210,-589.26,0.00027671,4]
[328087742,1716843052219,-500.0,0.00027671,4]
[328087744,1716843052228,-500.0,0.00027671,4]
[328087746,1716843052238,-564.88,0.00027671,4]
[328087748,1716843052247,-680.42,0.00027671,4]
[328087750,1716843052255,-500.0,0.00027671,4]
[328087752,1716843052265,-500.0,0.00027671,4]
[328087754,1716843052274,-500.0,0.00027671,4]
[328087756,1716843052284,-250.0,0.00027671,4]
[328087758,1716843052293,-500.0,0.00027671,4]
[328087760,1716843052302,-500.0,0.00027671,4]
[328087762,1716843052314,-500.0,0.00027671,4]
[328087764,1716843052323,-1698.89,0.00027671,4]
[328087766,1716843052333,-500.0,0.00027671,4]
[328087768,1716843052342,-500.0,0.00027671,4]
[328087770,1716843052352,-500.0,0.00027671,4]
[328087772,1716843052361,-1240.4,0.00027671,4]
[328087774,1716843052370,-327.97763544,0.00027671,4]
[328087776,1716843052379,-500.0,0.00027671,4]
[328087778,1716843052389,-500.0,0.00027671,4]
[328087780,1716843052398,-532.39,0.00027671,4]
[328087782,1716843052408,-567.72735548,0.00027671,4]
[328087784,1716843052417,-1487.07,0.00027671,4]
[328087786,1716843052426,-500.0,0.00027671,4]
[328087788,1716843052435,-867.15,0.00027671,4]